[Event "Titled Tuesday Blitz May 9 Early 2023"]
[White "Garagulya, Konstantin"]
[Black "Antal, Gergely"]
[WhiteFideId "4128931"]
[BlackFideId "717312"]
[WhiteElo "2329"]
[BlackElo "2471"]
[Result "0-1"]
[Round "03"]
[TimeControl "180+2"]
[Date "2023.05.09"]
[WhiteClock "0:00:00"]
[BlackClock "0:00:04"]

1. d4 {[%clk 0:02:59]}  f5 {[%clk 0:02:56]} 2. g3 {[%clk 0:02:58]}  Nf6 {[%clk 0:02:56]} 3. Bg2 {[%clk 0:02:58]}  e6 {[%clk 0:02:56]} 4. Nh3 {[%clk 0:02:59]}  d5 {[%clk 0:02:56]} 5. c4 {[%clk 0:02:59]}  Bd6 {[%clk 0:02:53]} 6. O-O {[%clk 0:02:59]}  O-O {[%clk 0:02:53]} 7. Bf4 {[%clk 0:02:59]}  Be7 {[%clk 0:02:45]} 8. Nc3 {[%clk 0:02:56]}  c6 {[%clk 0:02:45]} 9. f3 {[%clk 0:02:51]}  h6 {[%clk 0:02:37]} 10. Nf2 {[%clk 0:02:43]}  dxc4 {[%clk 0:02:32]} 11. e4 {[%clk 0:02:39]}  b5 {[%clk 0:02:17]} 12. a4 {[%clk 0:02:34]}  b4 {[%clk 0:02:17]} 13. Ne2 {[%clk 0:02:32]}  Ba6 {[%clk 0:02:14]} 14. Qc2 {[%clk 0:02:28]}  Nbd7 {[%clk 0:02:12]} 15. Rfd1 {[%clk 0:02:27]}  Qa5 {[%clk 0:02:02]} 16. Be3 {[%clk 0:02:02]}  fxe4 {[%clk 0:01:43]} 17. fxe4 {[%clk 0:01:59]}  e5 {[%clk 0:01:43]} 18. Bh3 {[%clk 0:01:47]}  Rad8 {[%clk 0:01:26]} 19. Be6+ {[%clk 0:01:37]}  Kh8 {[%clk 0:01:26]} 20. Ng4 {[%clk 0:01:38]}  Nxg4 {[%clk 0:01:22]} 21. Bxg4 {[%clk 0:01:39]}  exd4 {[%clk 0:00:52]} 22. Nxd4 {[%clk 0:01:39]}  Ne5 {[%clk 0:00:52]} 23. Be2 {[%clk 0:01:34]}  Bc5 {[%clk 0:00:52]} 24. Kh1 {[%clk 0:01:28]}  c3 {[%clk 0:00:20]} 25. Bxa6 {[%clk 0:01:14]}  Qxa6 {[%clk 0:00:20]} 26. bxc3 {[%clk 0:01:14]}  Ng4 {[%clk 0:00:18]} 27. Bg1 {[%clk 0:01:13]}  Bxd4 {[%clk 0:00:16]} 28. cxd4 {[%clk 0:01:11]}  Qb7 {[%clk 0:00:12]} 29. a5 {[%clk 0:01:07]}  c5 {[%clk 0:00:11]} 30. d5 {[%clk 0:01:07]}  Rfe8 {[%clk 0:00:09]} 31. Rab1 {[%clk 0:01:05]}  Qf7 {[%clk 0:00:08]} 32. Rf1 {[%clk 0:01:04]}  Qg6 {[%clk 0:00:08]} 33. Rf4 {[%clk 0:01:03]}  Rxd5 {[%clk 0:00:09]} 34. Rxg4 {[%clk 0:01:01]}  Qxg4 {[%clk 0:00:08]} 35. exd5 {[%clk 0:01:02]}  Qf3+ {[%clk 0:00:09]} 36. Qg2 {[%clk 0:01:02]}  Qf5 {[%clk 0:00:09]} 37. Rf1 {[%clk 0:01:01]}  Qg6 {[%clk 0:00:08]} 38. Bxc5 {[%clk 0:01:01]}  b3 {[%clk 0:00:09]} 39. Bd4 {[%clk 0:00:55]}  Qd3 {[%clk 0:00:09]} 40. Qf2 {[%clk 0:00:50]}  Qe4+ {[%clk 0:00:05]} 41. Kg1 {[%clk 0:00:49]}  Qxd5 {[%clk 0:00:06]} 42. Bb2 {[%clk 0:00:45]}  Qxa5 {[%clk 0:00:06]} 43. Qf7 {[%clk 0:00:42]}  Qc5+ {[%clk 0:00:07]} 44. Rf2 {[%clk 0:00:39]}  Rg8 {[%clk 0:00:07]} 45. Qxb3 {[%clk 0:00:36]}  Rf8 {[%clk 0:00:07]} 46. Qc2 {[%clk 0:00:32]}  Qb6 {[%clk 0:00:03]} 47. Qd2 {[%clk 0:00:32]}  a5 {[%clk 0:00:02]} 48. Qxh6+ {[%clk 0:00:32]}  Qxh6 {[%clk 0:00:02]} 49. Rxf8+ {[%clk 0:00:32]}  Kh7 {[%clk 0:00:03]} 50. Rf4 {[%clk 0:00:00]}  Qb6+ {[%clk 0:00:04]} 0-1


[Site "https://www.chess.com"]

[Event "Titled Tuesday Blitz May 9 Early 2023"]
[White "Veiga, Jose Francisco R P Neves"]
[Black "Pinto, Daniel"]
[WhiteFideId "1930087"]
[BlackFideId "3303144"]
[WhiteElo "2320"]
[BlackElo "2145"]
[Result "1-0"]
[Round "03"]
[TimeControl "180+2"]
[Date "2023.05.09"]
[WhiteClock "0:00:23"]
[BlackClock "0:00:00"]

1. e4 {[%clk 0:03:00]}  e5 {[%clk 0:02:54]} 2. Nf3 {[%clk 0:03:01]}  Nc6 {[%clk 0:02:54]} 3. d4 {[%clk 0:02:55]}  exd4 {[%clk 0:02:54]} 4. Nxd4 {[%clk 0:02:56]}  Nf6 {[%clk 0:02:54]} 5. Nc3 {[%clk 0:02:54]}  Bb4 {[%clk 0:02:53]} 6. Nxc6 {[%clk 0:02:53]}  bxc6 {[%clk 0:02:54]} 7. Bd3 {[%clk 0:02:54]}  O-O {[%clk 0:02:54]} 8. O-O {[%clk 0:02:52]}  d5 {[%clk 0:02:54]} 9. exd5 {[%clk 0:02:44]}  cxd5 {[%clk 0:02:55]} 10. Bg5 {[%clk 0:02:44]}  c6 {[%clk 0:02:54]} 11. Qf3 {[%clk 0:02:43]}  h6 {[%clk 0:02:52]} 12. Bxf6 {[%clk 0:02:41]}  Qxf6 {[%clk 0:02:53]} 13. Qxf6 {[%clk 0:02:41]}  gxf6 {[%clk 0:02:54]} 14. Ne2 {[%clk 0:02:41]}  Bd6 {[%clk 0:02:48]} 15. Rfe1 {[%clk 0:02:28]}  Be5 {[%clk 0:02:38]} 16. c3 {[%clk 0:02:20]}  Rb8 {[%clk 0:02:37]} 17. b4 {[%clk 0:02:02]}  Bd7 {[%clk 0:02:26]} 18. f4 {[%clk 0:01:59]}  Bd6 {[%clk 0:02:26]} 19. g3 {[%clk 0:01:55]}  c5 {[%clk 0:02:23]} 20. a3 {[%clk 0:01:54]}  a5 {[%clk 0:02:19]} 21. bxa5 {[%clk 0:01:52]}  c4 {[%clk 0:02:19]} 22. Bc2 {[%clk 0:01:52]}  Rb2 {[%clk 0:02:04]} 23. Nd4 {[%clk 0:01:51]}  Bc5 {[%clk 0:02:03]} 24. Re2 {[%clk 0:01:51]}  Ra8 {[%clk 0:01:13]} 25. Bh7+ {[%clk 0:01:47]}  Kxh7 {[%clk 0:01:12]} 26. Rxb2 {[%clk 0:01:48]}  Rxa5 {[%clk 0:01:12]} 27. Kg2 {[%clk 0:01:48]}  Bxd4 {[%clk 0:01:08]} 28. cxd4 {[%clk 0:01:47]}  Bf5 {[%clk 0:01:08]} 29. a4 {[%clk 0:01:41]}  Bd7 {[%clk 0:00:48]} 30. Rb7 {[%clk 0:01:37]}  Rxa4 {[%clk 0:00:25]} 31. Rxa4 {[%clk 0:01:34]}  Bxa4 {[%clk 0:00:26]} 32. Rxf7+ {[%clk 0:01:34]}  Kg6 {[%clk 0:00:27]} 33. Rc7 {[%clk 0:01:35]}  h5 {[%clk 0:00:18]} 34. Kf3 {[%clk 0:01:35]}  Bd1+ {[%clk 0:00:17]} 35. Ke3 {[%clk 0:01:35]}  Bc2 {[%clk 0:00:17]} 36. Kd2 {[%clk 0:01:21]}  Be4 {[%clk 0:00:17]} 37. Kc3 {[%clk 0:01:19]}  Kf5 {[%clk 0:00:18]} 38. Rg7 {[%clk 0:01:12]}  Bg2 {[%clk 0:00:18]} 39. Rh7 {[%clk 0:01:10]}  Kg4 {[%clk 0:00:18]} 40. Rh6 {[%clk 0:01:09]}  f5 {[%clk 0:00:18]} 41. Rg6+ {[%clk 0:01:07]}  Kh3 {[%clk 0:00:18]} 42. Rg5 {[%clk 0:01:07]}  Kxh2 {[%clk 0:00:16]} 43. Rxh5+ {[%clk 0:01:06]}  Kxg3 {[%clk 0:00:16]} 44. Rxf5 {[%clk 0:01:07]}  Be4 {[%clk 0:00:15]} 45. Rf8 {[%clk 0:01:08]}  Kg4 {[%clk 0:00:16]} 46. Kb4 {[%clk 0:01:07]}  Bf5 {[%clk 0:00:15]} 47. Kc5 {[%clk 0:01:04]}  Kxf4 {[%clk 0:00:10]} 48. Kxd5 {[%clk 0:01:04]}  c3 {[%clk 0:00:11]} 49. Rf7 {[%clk 0:00:56]}  c2 {[%clk 0:00:11]} 50. Rc7 {[%clk 0:00:56]}  Ke3 {[%clk 0:00:12]} 51. Ke5 {[%clk 0:00:55]}  Be4 {[%clk 0:00:11]} 52. d5 {[%clk 0:00:44]}  Bxd5 {[%clk 0:00:08]} 53. Rxc2 {[%clk 0:00:45]}  Kd3 {[%clk 0:00:04]} 54. Rh2 {[%clk 0:00:43]}  Bb3 {[%clk 0:00:04]} 55. Rh3+ {[%clk 0:00:43]}  Kc2 {[%clk 0:00:04]} 56. Kd4 {[%clk 0:00:43]}  Kb2 {[%clk 0:00:05]} 57. Rh2+ {[%clk 0:00:42]}  Ka1 {[%clk 0:00:04]} 58. Kc3 {[%clk 0:00:42]}  Ba2 {[%clk 0:00:04]} 59. Rb2 {[%clk 0:00:38]}  Bb1 {[%clk 0:00:04]} 60. Rb8 {[%clk 0:00:37]}  Ba2 {[%clk 0:00:04]} 61. Ra8 {[%clk 0:00:36]}  Kb1 {[%clk 0:00:05]} 62. Ra7 {[%clk 0:00:33]}  Ka1 {[%clk 0:00:03]} 63. Rg7 {[%clk 0:00:33]}  Bb1 {[%clk 0:00:03]} 64. Rb7 {[%clk 0:00:33]}  Ba2 {[%clk 0:00:03]} 65. Kc2 {[%clk 0:00:33]}  Bd5 {[%clk 0:00:02]} 66. Rb4 {[%clk 0:00:31]}  Ba2 {[%clk 0:00:03]} 67. Kc1 {[%clk 0:00:28]}  Bd5 {[%clk 0:00:03]} 68. Rb1+ {[%clk 0:00:24]}  Ka2 {[%clk 0:00:03]} 69. Rb5 {[%clk 0:00:25]}  Bc4 {[%clk 0:00:02]} 70. Rb4 {[%clk 0:00:24]}  Bb3 {[%clk 0:00:02]} 71. Rb8 {[%clk 0:00:24]}  Bc4 {[%clk 0:00:02]} 72. Kc2 {[%clk 0:00:24]}  Ka3 {[%clk 0:00:00]} 73. Kc3 {[%clk 0:00:23]} 1-0


[Site "https://www.chess.com"]

[Event "Titled Tuesday Blitz May 9 Early 2023"]
[White "Topalov, Aleksandar"]
[Black "Berezin, Viktor"]
[WhiteFideId "925659"]
[BlackFideId "14107872"]
[WhiteElo "2151"]
[BlackElo "2310"]
[Result "0-1"]
[Round "03"]
[TimeControl "180+2"]
[Date "2023.05.09"]
[WhiteClock "0:00:07"]
[BlackClock "0:00:02"]

1. b3 {[%clk 0:03:00]}  e5 {[%clk 0:02:52]} 2. Bb2 {[%clk 0:03:01]}  d6 {[%clk 0:02:49]} 3. d4 {[%clk 0:03:00]}  exd4 {[%clk 0:02:48]} 4. Qxd4 {[%clk 0:03:00]}  Nf6 {[%clk 0:02:48]} 5. Nc3 {[%clk 0:02:58]}  Be7 {[%clk 0:02:48]} 6. O-O-O {[%clk 0:02:58]}  O-O {[%clk 0:02:48]} 7. Nd5 {[%clk 0:02:58]}  Nc6 {[%clk 0:02:43]} 8. Nxe7+ {[%clk 0:02:58]}  Qxe7 {[%clk 0:02:43]} 9. Qh4 {[%clk 0:02:50]}  Ne4 {[%clk 0:02:30]} 10. Qf4 {[%clk 0:02:49]}  a5 {[%clk 0:02:13]} 11. g3 {[%clk 0:02:35]}  a4 {[%clk 0:02:07]} 12. Bg2 {[%clk 0:02:35]}  Ng5 {[%clk 0:02:04]} 13. Nf3 {[%clk 0:02:23]}  Ne6 {[%clk 0:02:00]} 14. Qd2 {[%clk 0:02:17]}  axb3 {[%clk 0:01:59]} 15. axb3 {[%clk 0:02:17]}  Nc5 {[%clk 0:01:37]} 16. Nd4 {[%clk 0:02:08]}  Nxd4 {[%clk 0:01:28]} 17. Qxd4 {[%clk 0:02:06]}  f6 {[%clk 0:01:28]} 18. e4 {[%clk 0:01:54]}  Be6 {[%clk 0:01:27]} 19. Kb1 {[%clk 0:01:49]}  Ra6 {[%clk 0:01:13]} 20. f4 {[%clk 0:01:48]}  Rfa8 {[%clk 0:01:12]} 21. e5 {[%clk 0:01:41]}  fxe5 {[%clk 0:00:47]} 22. fxe5 {[%clk 0:01:40]}  Bf5 {[%clk 0:00:39]} 23. exd6 {[%clk 0:01:31]}  Rxd6 {[%clk 0:00:35]} 24. Qc4+ {[%clk 0:01:19]}  Kh8 {[%clk 0:00:34]} 25. Rxd6 {[%clk 0:01:06]}  cxd6 {[%clk 0:00:35]} 26. Rf1 {[%clk 0:00:47]}  Be6 {[%clk 0:00:35]} 27. Qd4 {[%clk 0:00:43]}  Rc8 {[%clk 0:00:28]} 28. Rd1 {[%clk 0:00:32]}  Rd8 {[%clk 0:00:21]} 29. Bd5 {[%clk 0:00:26]}  Bf5 {[%clk 0:00:20]} 30. h4 {[%clk 0:00:20]}  h6 {[%clk 0:00:17]} 31. g4 {[%clk 0:00:19]}  Bh7 {[%clk 0:00:17]} 32. g5 {[%clk 0:00:19]}  hxg5 {[%clk 0:00:16]} 33. hxg5 {[%clk 0:00:19]}  Ne4 {[%clk 0:00:06]} 34. Rh1 {[%clk 0:00:15]}  Nxg5 {[%clk 0:00:05]} 35. Qh4 {[%clk 0:00:14]}  Rc8 {[%clk 0:00:02]} 36. Rh2 {[%clk 0:00:12]}  Rf8 {[%clk 0:00:01]} 37. Rh1 {[%clk 0:00:12]}  Rc8 {[%clk 0:00:01]} 38. Rh2 {[%clk 0:00:11]}  Rf8 {[%clk 0:00:01]} 39. Bc1 {[%clk 0:00:11]}  Qe5 {[%clk 0:00:01]} 40. Qxh7+ {[%clk 0:00:11]}  Nxh7 {[%clk 0:00:01]} 41. Rg2 {[%clk 0:00:09]}  Qxd5 {[%clk 0:00:01]} 42. Bb2 {[%clk 0:00:09]}  Qxg2 {[%clk 0:00:01]} 43. Bxg7+ {[%clk 0:00:07]}  Qxg7 {[%clk 0:00:02]} 0-1


[Site "https://www.chess.com"]

[Event "Titled Tuesday Blitz May 9 Early 2023"]
[White "Koridze, Lile"]
[Black "Shaik Sumer Arsh"]
[WhiteFideId "13612514"]
[BlackFideId "45020000"]
[WhiteElo "2047"]
[BlackElo "2350"]
[Result "1-0"]
[Round "03"]
[TimeControl "180+2"]
[Date "2023.05.09"]
[WhiteClock "0:01:32"]
[BlackClock "0:00:45"]

1. d4 {[%clk 0:03:00]}  Nf6 {[%clk 0:02:59]} 2. c4 {[%clk 0:02:57]}  e6 {[%clk 0:02:59]} 3. Nf3 {[%clk 0:02:56]}  d5 {[%clk 0:02:59]} 4. g3 {[%clk 0:02:57]}  Bb4+ {[%clk 0:02:58]} 5. Bd2 {[%clk 0:02:57]}  Be7 {[%clk 0:02:58]} 6. Bg2 {[%clk 0:02:57]}  O-O {[%clk 0:02:55]} 7. O-O {[%clk 0:02:57]}  Nbd7 {[%clk 0:02:56]} 8. Qc2 {[%clk 0:02:56]}  Ne4 {[%clk 0:02:56]} 9. b3 {[%clk 0:02:52]}  c6 {[%clk 0:02:56]} 10. Bc3 {[%clk 0:02:51]}  f5 {[%clk 0:02:28]} 11. Nbd2 {[%clk 0:02:44]}  a5 {[%clk 0:02:27]} 12. Bb2 {[%clk 0:02:43]}  Bd6 {[%clk 0:02:03]} 13. Ne5 {[%clk 0:02:35]}  Nxe5 {[%clk 0:01:56]} 14. dxe5 {[%clk 0:02:35]}  Bb4 {[%clk 0:01:56]} 15. Nxe4 {[%clk 0:02:31]}  fxe4 {[%clk 0:01:56]} 16. f3 {[%clk 0:02:31]}  exf3 {[%clk 0:01:40]} 17. exf3 {[%clk 0:02:31]}  Qb6+ {[%clk 0:01:36]} 18. Kh1 {[%clk 0:02:31]}  Bd7 {[%clk 0:01:36]} 19. Rad1 {[%clk 0:02:28]}  a4 {[%clk 0:01:31]} 20. f4 {[%clk 0:02:27]}  axb3 {[%clk 0:01:29]} 21. axb3 {[%clk 0:02:27]}  Ra2 {[%clk 0:01:29]} 22. Qb1 {[%clk 0:02:24]}  Qa5 {[%clk 0:01:22]} 23. f5 {[%clk 0:02:10]}  Qa6 {[%clk 0:00:55]} 24. fxe6 {[%clk 0:01:46]}  Rxf1+ {[%clk 0:00:56]} 25. Bxf1 {[%clk 0:01:43]}  Bxe6 {[%clk 0:00:49]} 26. cxd5 {[%clk 0:01:33]}  Bxd5+ {[%clk 0:00:50]} 27. Rxd5 {[%clk 0:01:33]}  Rxb2 {[%clk 0:00:50]} 28. Rd8+ {[%clk 0:01:32]}  Bf8 {[%clk 0:00:47]} 29. Rxf8+ {[%clk 0:01:32]}  Kxf8 {[%clk 0:00:45]} 30. Qf5+ {[%clk 0:01:32]} 1-0


[Site "https://www.chess.com"]

[Event "Titled Tuesday Blitz May 9 Early 2023"]
[White "Titichoca Daza, Daniel"]
[Black "Ismagilov, Damir"]
[WhiteFideId "3309550"]
[BlackFideId "34199982"]
[WhiteElo "2101"]
[BlackElo "2143"]
[Result "1/2-1/2"]
[Round "03"]
[TimeControl "180+2"]
[Date "2023.05.09"]
[WhiteClock "0:00:12"]
[BlackClock "0:00:06"]

1. d4 {[%clk 0:03:00]}  Nf6 {[%clk 0:02:59]} 2. c4 {[%clk 0:03:01]}  e6 {[%clk 0:03:00]} 3. Nf3 {[%clk 0:03:01]}  d5 {[%clk 0:02:59]} 4. Nbd2 {[%clk 0:03:01]}  c5 {[%clk 0:02:45]} 5. dxc5 {[%clk 0:02:59]}  Bxc5 {[%clk 0:02:45]} 6. cxd5 {[%clk 0:02:54]}  Nxd5 {[%clk 0:02:36]} 7. a3 {[%clk 0:02:51]}  O-O {[%clk 0:02:23]} 8. b4 {[%clk 0:02:46]}  Bb6 {[%clk 0:02:15]} 9. Bb2 {[%clk 0:02:44]}  Nc6 {[%clk 0:01:59]} 10. Nc4 {[%clk 0:02:41]}  Bc7 {[%clk 0:01:59]} 11. e3 {[%clk 0:02:34]}  f6 {[%clk 0:01:52]} 12. Qc2 {[%clk 0:02:29]}  Qe8 {[%clk 0:01:22]} 13. Bd3 {[%clk 0:02:27]}  f5 {[%clk 0:01:11]} 14. b5 {[%clk 0:02:13]}  Na5 {[%clk 0:01:04]} 15. O-O {[%clk 0:02:12]}  Nxc4 {[%clk 0:01:02]} 16. Bxc4 {[%clk 0:02:11]}  Nf6 {[%clk 0:00:38]} 17. Qxf5 {[%clk 0:01:59]}  Bd7 {[%clk 0:00:31]} 18. Rfd1 {[%clk 0:01:44]}  Rc8 {[%clk 0:00:22]} 19. Rxd7 {[%clk 0:01:39]}  Nxd7 {[%clk 0:00:22]} 20. Qxe6+ {[%clk 0:01:30]}  Kh8 {[%clk 0:00:21]} 21. Rd1 {[%clk 0:01:00]}  Nf6 {[%clk 0:00:17]} 22. Qh3 {[%clk 0:00:58]}  Bxh2+ {[%clk 0:00:12]} 23. Kxh2 {[%clk 0:00:50]}  Rxc4 {[%clk 0:00:13]} 24. Nd4 {[%clk 0:00:32]}  Rc5 {[%clk 0:00:09]} 25. Kg1 {[%clk 0:00:23]}  Rh5 {[%clk 0:00:09]} 26. Qg3 {[%clk 0:00:18]}  Ne4 {[%clk 0:00:09]} 27. Qc7 {[%clk 0:00:14]}  Qf7 {[%clk 0:00:08]} 28. Qxf7 {[%clk 0:00:13]}  Rxf7 {[%clk 0:00:08]} 29. f3 {[%clk 0:00:13]}  Nf6 {[%clk 0:00:07]} 30. Ne6 {[%clk 0:00:12]}  h6 {[%clk 0:00:06]} 31. Rd8+ {[%clk 0:00:11]}  Kh7 {[%clk 0:00:07]} 32. Nf8+ {[%clk 0:00:12]}  Kg8 {[%clk 0:00:04]} 33. Ne6+ {[%clk 0:00:11]}  Kh7 {[%clk 0:00:04]} 34. Nf8+ {[%clk 0:00:11]}  Kg8 {[%clk 0:00:05]} 35. Ne6+ {[%clk 0:00:12]}  Kh7 {[%clk 0:00:06]} 1/2-1/2


[Site "https://www.chess.com"]

[Event "Titled Tuesday Blitz May 9 Early 2023"]
[White "Ingebretsen, Jens E"]
[Black "electrosaw"]
[WhiteFideId "1522965"]
[WhiteElo "2213"]
[BlackElo "2423"]
[Result "0-1"]
[Round "03"]
[TimeControl "180+2"]
[Date "2023.05.09"]
[WhiteClock "0:01:04"]
[BlackClock "0:01:45"]

1. e4 {[%clk 0:03:00]}  c5 {[%clk 0:02:59]} 2. Nf3 {[%clk 0:03:00]}  Nc6 {[%clk 0:02:59]} 3. d4 {[%clk 0:03:00]}  cxd4 {[%clk 0:03:00]} 4. Nxd4 {[%clk 0:03:01]}  g6 {[%clk 0:03:00]} 5. Be3 {[%clk 0:03:00]}  Bg7 {[%clk 0:03:00]} 6. c3 {[%clk 0:03:00]}  Nf6 {[%clk 0:03:00]} 7. Nd2 {[%clk 0:03:00]}  O-O {[%clk 0:03:01]} 8. Be2 {[%clk 0:03:00]}  d5 {[%clk 0:03:01]} 9. Nxc6 {[%clk 0:02:54]}  bxc6 {[%clk 0:03:01]} 10. Qc2 {[%clk 0:02:51]}  dxe4 {[%clk 0:03:01]} 11. Nxe4 {[%clk 0:02:52]}  Nxe4 {[%clk 0:03:01]} 12. Qxe4 {[%clk 0:02:53]}  Bf5 {[%clk 0:02:59]} 13. Qc4 {[%clk 0:02:43]}  Rb8 {[%clk 0:02:55]} 14. b4 {[%clk 0:02:36]}  Qd5 {[%clk 0:02:46]} 15. Qxd5 {[%clk 0:02:29]}  cxd5 {[%clk 0:02:47]} 16. Kd2 {[%clk 0:02:29]}  Rfc8 {[%clk 0:02:42]} 17. Rac1 {[%clk 0:02:23]}  a5 {[%clk 0:02:42]} 18. a3 {[%clk 0:02:20]}  axb4 {[%clk 0:02:42]} 19. cxb4 {[%clk 0:02:21]}  Bb2 {[%clk 0:02:40]} 20. Ba6 {[%clk 0:01:58]}  Bxc1+ {[%clk 0:02:38]} 21. Rxc1 {[%clk 0:01:58]}  Rxc1 {[%clk 0:02:37]} 22. Kxc1 {[%clk 0:01:59]}  e5 {[%clk 0:02:24]} 23. Bc5 {[%clk 0:01:54]}  Ra8 {[%clk 0:02:23]} 24. Bb7 {[%clk 0:01:38]}  Rxa3 {[%clk 0:02:20]} 25. Kb2 {[%clk 0:01:38]}  Rd3 {[%clk 0:02:05]} 26. b5 {[%clk 0:01:37]}  d4 {[%clk 0:01:54]} 27. b6 {[%clk 0:01:34]}  Be6 {[%clk 0:01:54]} 28. Kc2 {[%clk 0:01:08]}  Rc3+ {[%clk 0:01:50]} 29. Kb2 {[%clk 0:01:05]}  Rxc5 {[%clk 0:01:51]} 30. Ba6 {[%clk 0:01:06]}  Rc6 {[%clk 0:01:47]} 31. b7 {[%clk 0:01:05]}  Rb6+ {[%clk 0:01:47]} 32. Ka3 {[%clk 0:01:05]}  Bd5 {[%clk 0:01:46]} 33. Ka4 {[%clk 0:01:05]}  Rxa6+ {[%clk 0:01:45]} 34. Kb5 {[%clk 0:01:04]}  Bxb7 {[%clk 0:01:45]} 0-1


[Site "https://www.chess.com"]

[Event "Titled Tuesday Blitz May 9 Early 2023"]
[White "Balla, Tamas-Kristof"]
[Black "Nikologorskiy, Konstantin"]
[WhiteFideId "1208497"]
[BlackFideId "24111708"]
[WhiteElo "2334"]
[BlackElo "2273"]
[Result "0-1"]
[Round "03"]
[TimeControl "180+2"]
[Date "2023.05.09"]
[WhiteClock "0:00:04"]
[BlackClock "0:00:31"]

1. e4 {[%clk 0:03:00]}  c5 {[%clk 0:03:00]} 2. Nf3 {[%clk 0:03:00]}  d6 {[%clk 0:03:00]} 3. d4 {[%clk 0:03:00]}  cxd4 {[%clk 0:03:01]} 4. Qxd4 {[%clk 0:03:00]}  Nf6 {[%clk 0:03:02]} 5. h3 {[%clk 0:02:58]}  Nc6 {[%clk 0:03:02]} 6. Qe3 {[%clk 0:02:58]}  e5 {[%clk 0:02:55]} 7. Be2 {[%clk 0:02:57]}  Be7 {[%clk 0:02:53]} 8. O-O {[%clk 0:02:57]}  O-O {[%clk 0:02:52]} 9. Rd1 {[%clk 0:02:58]}  h6 {[%clk 0:02:48]} 10. c4 {[%clk 0:02:58]}  Be6 {[%clk 0:02:46]} 11. b3 {[%clk 0:02:58]}  Nh7 {[%clk 0:02:39]} 12. Bb2 {[%clk 0:02:57]}  Qe8 {[%clk 0:02:33]} 13. Nc3 {[%clk 0:02:48]}  f5 {[%clk 0:02:33]} 14. exf5 {[%clk 0:02:35]}  Bxf5 {[%clk 0:02:34]} 15. Nd5 {[%clk 0:02:34]}  Bd8 {[%clk 0:02:17]} 16. Nh2 {[%clk 0:01:58]}  Qg6 {[%clk 0:02:15]} 17. Bg4 {[%clk 0:01:56]}  Ng5 {[%clk 0:01:57]} 18. Nc3 {[%clk 0:01:45]}  Nd4 {[%clk 0:01:39]} 19. Nd5 {[%clk 0:01:25]}  Nc2 {[%clk 0:01:35]} 20. Bxf5 {[%clk 0:00:54]}  Qxf5 {[%clk 0:01:28]} 21. Qe2 {[%clk 0:00:48]}  Nxa1 {[%clk 0:01:28]} 22. Bxa1 {[%clk 0:00:49]}  Ne6 {[%clk 0:01:24]} 23. Ne3 {[%clk 0:00:32]}  Qg5 {[%clk 0:01:24]} 24. Rxd6 {[%clk 0:00:30]}  Nf4 {[%clk 0:01:22]} 25. Qg4 {[%clk 0:00:20]}  Qe7 {[%clk 0:00:56]} 26. Rd7 {[%clk 0:00:20]}  Qf6 {[%clk 0:00:53]} 27. Nd5 {[%clk 0:00:20]}  Qg6 {[%clk 0:00:51]} 28. Nxf4 {[%clk 0:00:19]}  Qxg4 {[%clk 0:00:41]} 29. Nxg4 {[%clk 0:00:20]}  Rxf4 {[%clk 0:00:40]} 30. Bxe5 {[%clk 0:00:20]}  Rf7 {[%clk 0:00:40]} 31. Rd3 {[%clk 0:00:15]}  a5 {[%clk 0:00:38]} 32. Rg3 {[%clk 0:00:13]}  Kh7 {[%clk 0:00:37]} 33. Rd3 {[%clk 0:00:13]}  a4 {[%clk 0:00:37]} 34. Ne3 {[%clk 0:00:13]}  axb3 {[%clk 0:00:37]} 35. axb3 {[%clk 0:00:13]}  Bb6 {[%clk 0:00:37]} 36. Bd4 {[%clk 0:00:12]}  Bxd4 {[%clk 0:00:32]} 37. Rxd4 {[%clk 0:00:12]}  Ra1+ {[%clk 0:00:33]} 38. Kh2 {[%clk 0:00:12]}  Rxf2 {[%clk 0:00:34]} 39. Ng4 {[%clk 0:00:12]}  Rb2 {[%clk 0:00:32]} 40. Rd7 {[%clk 0:00:12]}  Raa2 {[%clk 0:00:31]} 41. Ne3 {[%clk 0:00:11]}  Re2 {[%clk 0:00:31]} 42. Re7 {[%clk 0:00:10]}  Rab2 {[%clk 0:00:30]} 43. Nf5 {[%clk 0:00:09]}  Rxe7 {[%clk 0:00:31]} 44. Nxe7 {[%clk 0:00:10]}  Rxb3 {[%clk 0:00:31]} 45. Nd5 {[%clk 0:00:09]}  Rb2 {[%clk 0:00:31]} 46. c5 {[%clk 0:00:04]}  Rc2 {[%clk 0:00:31]} 0-1


[Site "https://www.chess.com"]

[Event "Titled Tuesday Blitz May 9 Early 2023"]
[White "Kleiman, Jake"]
[Black "Khromkin"]
[WhiteFideId "2020041"]
[WhiteElo "2577"]
[BlackElo "2416"]
[Result "1-0"]
[Round "03"]
[TimeControl "180+2"]
[Date "2023.05.09"]
[WhiteClock "0:00:41"]
[BlackClock "0:00:05"]

1. e4 {[%clk 0:02:59]}  c5 {[%clk 0:02:58]} 2. c3 {[%clk 0:02:58]}  d5 {[%clk 0:02:55]} 3. exd5 {[%clk 0:02:59]}  Qxd5 {[%clk 0:02:54]} 4. d4 {[%clk 0:03:00]}  cxd4 {[%clk 0:02:55]} 5. cxd4 {[%clk 0:02:59]}  Nc6 {[%clk 0:02:55]} 6. Nf3 {[%clk 0:03:00]}  Bg4 {[%clk 0:02:56]} 7. Nc3 {[%clk 0:03:01]}  Bxf3 {[%clk 0:02:55]} 8. gxf3 {[%clk 0:03:02]}  Qxd4 {[%clk 0:02:54]} 9. Qxd4 {[%clk 0:03:02]}  Nxd4 {[%clk 0:02:55]} 10. Nb5 {[%clk 0:03:03]}  Nc2+ {[%clk 0:02:53]} 11. Kd1 {[%clk 0:03:03]}  Nxa1 {[%clk 0:02:53]} 12. Nc7+ {[%clk 0:03:03]}  Kd7 {[%clk 0:02:43]} 13. Nxa8 {[%clk 0:03:04]}  g6 {[%clk 0:02:42]} 14. Be3 {[%clk 0:02:36]}  Bh6 {[%clk 0:02:40]} 15. Bb5+ {[%clk 0:02:15]}  Kd6 {[%clk 0:02:18]} 16. Bxa7 {[%clk 0:02:06]}  Nf6 {[%clk 0:02:17]} 17. Nb6 {[%clk 0:02:02]}  Kc5 {[%clk 0:01:55]} 18. Bd3 {[%clk 0:01:57]}  Rd8 {[%clk 0:01:28]} 19. Ke2 {[%clk 0:01:55]}  Nh5 {[%clk 0:01:28]} 20. Nc4+ {[%clk 0:01:37]}  Kb4 {[%clk 0:01:25]} 21. Be3 {[%clk 0:01:33]}  Bxe3 {[%clk 0:00:52]} 22. fxe3 {[%clk 0:01:32]}  Nc2 {[%clk 0:00:39]} 23. Rc1 {[%clk 0:01:19]}  b5 {[%clk 0:00:32]} 24. Ne5 {[%clk 0:01:16]}  Rd5 {[%clk 0:00:20]} 25. Nc6+ {[%clk 0:01:13]}  Kc5 {[%clk 0:00:20]} 26. Rxc2+ {[%clk 0:01:11]}  Kb6 {[%clk 0:00:21]} 27. Nxe7 {[%clk 0:01:08]}  Re5 {[%clk 0:00:20]} 28. Nc8+ {[%clk 0:01:03]}  Ka5 {[%clk 0:00:19]} 29. Kd2 {[%clk 0:01:00]}  Re6 {[%clk 0:00:16]} 30. Rc5 {[%clk 0:00:57]}  Ka6 {[%clk 0:00:14]} 31. a4 {[%clk 0:00:54]}  Kb7 {[%clk 0:00:14]} 32. Bxb5 {[%clk 0:00:53]}  Nf6 {[%clk 0:00:14]} 33. e4 {[%clk 0:00:52]}  Nh5 {[%clk 0:00:13]} 34. Ke3 {[%clk 0:00:52]}  Ng7 {[%clk 0:00:12]} 35. a5 {[%clk 0:00:48]}  Nf5+ {[%clk 0:00:12]} 36. Kd3 {[%clk 0:00:46]}  Nh4 {[%clk 0:00:11]} 37. a6+ {[%clk 0:00:45]}  Ka8 {[%clk 0:00:11]} 38. Bc6+ {[%clk 0:00:42]}  Rxc6 {[%clk 0:00:08]} 39. Rxc6 {[%clk 0:00:43]}  Nxf3 {[%clk 0:00:08]} 40. Kc3 {[%clk 0:00:41]}  Ne5 {[%clk 0:00:05]} 41. Rc7 {[%clk 0:00:41]} 1-0


[Site "https://www.chess.com"]